bitfinex/quotes_SOLUSD_20250301
["timestamp","ask_amount","ask_price","bid_price","bid_amount"]
[1740796097058,18.64964886,149.81,149.75,1.39908512]
[1740796097262,5.3411,149.78,149.75,1.39908512]
[1740796097846,18.694,149.78,149.75,1.39908512]
[1740796099156,18.64964886,149.77,149.75,1.39908512]
[1740796099376,13.5418,149.76,149.74,0.03]
[1740796099551,13.5418,149.76,149.72,1.42908512]
[1740796099552,18.64964886,149.75,149.72,1.42908512]
[1740796099747,7.24,149.74,149.72,1.42908512]
[1740796100869,26.8965,149.76,149.72,159.42908512]
[1740796100870,8.2,149.76,149.72,159.42908512]
[1740796101269,8.2,149.8,149.72,168.77158512]
[1740796101746,18.6865,149.84,149.76,20.0]
[1740796101945,18.6865,149.84,149.76,159.39908512]
[1740796102255,5.339,149.84,149.76,159.39908512]
[1740796102470,18.6865,149.84,149.76,159.39908512]
[1740796102648,18.64964886,149.83,149.76,159.39908512]
[1740796103564,18.64964886,149.83,149.76,1.39908512]
[1740796103565,18.64964886,149.81,149.76,1.39908512]
[1740796103745,25.88964886,149.81,149.76,1.39908512]
[1740796105355,27.88964886,149.81,149.76,1.39908512]
[1740796105643,18.64964886,149.79,149.76,1.39908512]
[1740796107786,5.3411,149.78,149.76,1.39908512]
[1740796108063,18.64964886,149.77,149.72,1.42908512]
[1740796108264,18.64964886,149.77,149.72,21.42908512]
[1740796108467,18.694,149.78,149.72,21.42908512]
[1740796109569,18.694,149.78,149.72,1.42908512]
[1740796109868,5.3404,149.8,149.72,144.77228512]
[1740796110764,18.64964886,149.75,149.72,1.42908512]
[1740796111076,18.64964886,149.73,149.72,0.0001]
[1740796111865,23.99254886,149.73,149.72,0.0001]
[1740796113163,2.0,149.72,149.69,8.512e-05]
[1740796113360,20.64964886,149.71,149.64,8.512e-05]
[1740796113557,2.0,149.7,149.64,8.512e-05]
[1740796113751,18.64964886,149.68,149.64,8.512e-05]
[1740796113956,25.9477,149.67,149.64,8.512e-05]
[1740796114270,25.9477,149.67,149.61,138.03]
[1740796114271,18.64964886,149.66,149.61,0.03008512]
[1740796114860,25.9477,149.67,149.61,0.03008512]
[1740796115055,18.64964886,149.65,149.61,0.03008512]
[1740796115260,18.64964886,149.65,149.61,0.03]
[1740796115261,2.0,149.64,149.61,0.03]
[1740796115861,18.64964886,149.63,149.61,0.03]
[1740796117069,5.3454,149.66,149.61,0.03008512]
[1740796117463,23.99504886,149.66,149.61,0.03008512]
[1740796118159,7.24,149.67,149.61,138.03008512]
[1740796118552,4.0966,149.72,149.61,138.03008512]
[1740796118553,8.3855,149.75,149.64,20.0]
[1740796118751,5.3411,149.78,149.68,20.0]
[1740796119082,5.3411,149.78,149.69,4.1898]
[1740796120282,18.64964886,149.77,149.69,4.1898]
[1740796120564,18.64964886,149.77,149.69,142.18988512]
[1740796120876,20.64964886,149.75,149.67,8.512e-05]
[1740796121051,20.64964886,149.75,149.67,138.00008512]
[1740796121245,2.0,149.77,149.67,138.00008512]
[1740796121453,5.3411,149.78,149.67,138.00008512]
[1740796121652,5.3411,149.78,149.67,143.34498512]
[1740796121864,12.5811,149.78,149.67,138.00008512]
[1740796122372,20.64964886,149.75,149.67,8.512e-05]
[1740796122584,18.64964886,149.73,149.67,8.512e-05]
[1740796122781,18.64964886,149.71,149.67,8.512e-05]
[1740796123081,7.24,149.72,149.67,8.512e-05]
[1740796123956,23.99324886,149.71,149.67,8.512e-05]
[1740796124151,18.64964886,149.7,149.67,8.512e-05]
[1740796124652,18.64964886,149.7,149.64,8.512e-05]
[1740796125752,26.6972,149.71,149.64,8.512e-05]
[1740796126062,20.5991,149.71,149.64,138.00008512]
[1740796126262,7.24,149.71,149.64,138.00008512]
[1740796126463,7.24,149.71,149.66,0.03]
[1740796127449,5.344,149.7,149.66,0.03]
[1740796128167,25.99364886,149.7,149.66,0.03008512]
[1740796128470,20.64964886,149.69,149.66,0.03]
[1740796128669,18.64964886,149.67,149.61,142.32628512]
[1740796128862,20.64964886,149.67,149.61,4.32628512]
[1740796129561,18.64964886,149.65,149.61,4.32628512]
[1740796130258,5.3454,149.66,149.61,4.32628512]
[1740796131263,5.3454,149.66,149.61,142.32628512]
[1740796131465,13.3629,149.67,149.61,142.32628512]
[1740796131662,18.7079,149.67,149.61,142.32628512]
[1740796135793,5.3458,149.65,149.61,142.32628512]
[1740796136166,18.7103,149.65,149.61,142.32628512]
[1740796136792,18.7103,149.65,149.61,0.03008512]
[1740796136967,25.9503,149.65,149.61,0.03008512]
[1740796138961,20.0,149.62,149.61,0.0001]
[1740796139468,38.64964886,149.62,149.61,0.0001]
[1740796140279,25.9503,149.65,149.61,0.0001]
[1740796140480,18.64964886,149.64,149.61,0.0001]
[1740796140786,5.3465,149.63,149.61,0.0001]
[1740796141294,5.3465,149.63,149.61,0.00018512]
[1740796142863,41.25414886,149.65,149.61,0.00018512]
[1740796142864,37.36114886,149.64,149.61,0.00018512]
[1740796143069,5.344,149.7,149.62,4.3143]
[1740796144080,5.344,149.7,149.62,142.31438512]
[1740796144281,18.64964886,149.69,149.62,142.31438512]
[1740796144666,20.64964886,149.69,149.62,142.31438512]
[1740796144866,18.64964886,149.69,149.62,142.31438512]
[1740796145167,5.3447,149.68,149.62,142.31438512]
[1740796146685,5.3454,149.66,149.62,142.31438512]
[1740796146867,18.64964886,149.65,149.62,4.31438512]
[1740796147071,18.64964886,149.65,149.62,8.512e-05]
[1740796147689,20.64964886,149.65,149.62,8.512e-05]
[1740796148263,18.64964886,149.65,149.62,8.512e-05]
[1740796148987,18.64964886,149.63,149.61,0.0001]
[1740796150200,18.64964886,149.63,149.62,0.03]
[1740796150974,25.99614886,149.63,149.62,0.03]
[1740796151993,23.99614886,149.63,149.62,0.03]
[1740796153081,5.3462,149.64,149.62,0.03]
[1740796153283,7.24,149.63,149.62,0.03]
[1740796153492,25.88964886,149.63,149.62,0.03]
[1740796153684,2.0,149.61,149.55,8.512e-05]
[1740796153884,20.64964886,149.61,149.6,0.03221433]
[1740796155286,25.99684886,149.61,149.6,0.03221433]
[1740796156292,23.99684886,149.61,149.6,0.03221433]
[1740796158287,23.99684886,149.61,149.6,1.433e-05]
[1740796161091,5.3454,149.66,149.6,138.00009945]
[1740796161401,5.3454,149.66,149.61,4.2387]
[1740796161876,18.64964886,149.65,149.61,4.2387]
[1740796162777,0.063,149.63,149.61,4.2387]
[1740796163178,18.71264886,149.63,149.61,4.2387]
[1740796165296,5.3468,149.62,149.61,4.2387]
[1740796171296,0.063,149.63,149.61,4.23878512]
[1740796171496,0.063,149.63,149.61,142.23878512]
[1740796171884,10.27047309,149.69,149.64,28.2731]
[1740796172090,10.27047309,149.69,149.65,4.1756]
[1740796172385,10.27047309,149.69,149.66,18.64964886]
[1740796172581,5.86237309,149.69,149.68,38.64964886]
[1740796172786,10.53889976,149.7,149.69,18.64964886]
[1740796172988,10.53889976,149.7,149.69,22.82524886]
[1740796173199,20.54094619,149.72,149.71,20.0]
[1740796173510,20.54094619,149.72,149.71,184.92283398]
[1740796173808,20.54094619,149.72,149.71,190.26643398]
[1740796173991,20.54094619,149.72,149.71,184.92283398]
[1740796174189,20.54094619,149.72,149.71,166.27318512]
[1740796174387,20.54094619,149.72,149.71,158.00008512]
[1740796174592,20.54094619,149.72,149.71,138.00008512]
[1740796175691,0.063,149.78,149.71,138.00008512]
[1740796176092,0.063,149.78,149.72,18.64964886]
[1740796176512,0.063,149.78,149.76,18.64964886]
[1740796176698,0.063,149.78,149.76,156.64973398]
[1740796180812,0.063,149.78,149.76,138.00008512]
[1740796185304,0.063,149.78,149.76,143.34188512]
[1740796185496,0.063,149.78,149.76,138.00008512]
[1740796186195,0.063,149.78,149.77,18.64964886]
[1740796186607,0.063,149.78,149.77,23.99114886]
[1740796187112,0.063,149.78,149.76,143.34178512]
[1740796187312,0.063,149.78,149.77,18.64964886]
[1740796188022,0.063,149.78,149.76,138.00008512]
[1740796189012,0.063,149.78,149.76,143.34188512]
[1740796189225,0.063,149.78,149.77,18.64964886]
[1740796189431,0.063,149.78,149.77,176.73973398]
[1740796189595,0.06291488,149.78,149.77,176.73964886]
[1740796190610,0.06291488,149.78,149.77,182.08114886]
[1740796191800,0.06291488,149.78,149.77,161.99114886]
[1740796191999,0.06291488,149.78,149.77,237.64964886]
[1740796192232,0.06291488,149.78,149.77,219.0]
[1740796192422,0.06291488,149.78,149.77,224.3415]
[1740796192635,0.06291488,149.78,149.77,242.99114886]
[1740796194536,0.06291488,149.78,149.77,81.0]
[1740796199836,0.06291488,149.78,149.77,219.0]
[1740796201126,0.06291488,149.78,149.77,81.0]
[1740796201329,0.06291488,149.78,149.71,219.03]
[1740796201922,5.40401488,149.78,149.71,219.03]
[1740796203031,20.75691488,149.78,149.71,81.03]
[1740796203627,28.4373,149.75,149.71,81.03]
[1740796203826,5.3429,149.73,149.71,0.03]
[1740796204027,7.2,149.72,149.71,0.03]
[1740796204335,7.2,149.72,149.63,219.0]
[1740796205420,7.2,149.72,149.63,81.0]
[1740796205421,20.64964886,149.71,149.63,81.0]
[1740796205824,18.64964886,149.71,149.63,81.0]
[1740796206028,5.344,149.7,149.63,81.0]
[1740796206946,7.2,149.72,149.64,18.64964886]
[1740796207129,12.5433,149.72,149.64,18.64964886]
[1740796207723,12.5433,149.72,149.63,224.3463]
[1740796208656,12.5433,149.72,149.63,219.0]
[1740796208657,25.9015,149.72,149.63,219.0]
[1740796208819,25.9015,149.72,149.63,219.03]
[1740796209717,18.64964886,149.71,149.63,219.03]
[1740796210934,18.64964886,149.71,149.63,0.03]
[1740796210935,20.0,149.64,149.63,0.03]
[1740796211635,18.64964886,149.62,149.61,0.03]
[1740796211819,23.99644886,149.62,149.61,0.03]
[1740796212219,23.99644886,149.62,149.61,0.0001]
[1740796212635,23.01054886,149.61,149.6,1.433e-05]
[1740796213525,18.64964886,149.6,149.56,81.03]
[1740796213723,5.3483,149.58,149.56,81.03]
[1740796213940,5.3483,149.58,149.56,0.03]
[1740796214145,18.64964886,149.57,149.56,0.03]
[1740796215130,23.99824886,149.57,149.56,0.03]
[1740796216146,23.99824886,149.57,149.54,0.03]
[1740796216147,20.0,149.55,149.54,0.03]
[1740796216448,38.64964886,149.54,149.51,0.03]
[1740796216644,4.3609,149.52,149.51,0.03]
[1740796216844,23.01054886,149.52,149.51,0.03]
[1740796217148,5.3511,149.5,149.49,82.4733]
[1740796217449,5.3511,149.5,149.49,1.4733]
[1740796220446,7.9122,149.51,149.49,1.4733]
[1740796220447,5.3508,149.51,149.49,1.4733]
[1740796220828,24.00044886,149.51,149.49,1.4733]
[1740796221032,24.00044886,149.51,149.49,1.5033]
[1740796221239,90.6122,149.55,149.49,220.5033]
[1740796221240,7.9122,149.55,149.49,220.5033]
[1740796221528,13.2616,149.55,149.49,220.5033]
[1740796221727,20.0,149.56,149.49,225.8547]
[1740796221939,3.9129,149.57,149.49,225.8547]
[1740796223855,13.2602,149.59,149.49,225.8547]
[1740796224236,18.64964886,149.58,149.49,225.8547]
[1740796224443,23.99804886,149.58,149.49,225.8547]
[1740796225457,23.99804886,149.58,149.49,220.5033]
[1740796225639,18.64964886,149.58,149.49,225.8547]
[1740796225838,3.9127,149.61,149.49,225.8547]
[1740796226031,15.3633,149.67,149.53,20.0]
[1740796226244,15.3633,149.67,149.53,239.0]
[1740796226245,11.1127,149.66,149.53,239.0]
[1740796226446,20.0,149.63,149.54,5.3497]
[1740796226651,20.0,149.63,149.54,224.3497]
[1740796227238,18.64964886,149.62,149.54,219.0]
[1740796227956,20.0,149.59,149.54,219.0]
[1740796228855,5.3465,149.63,149.54,219.0]
[1740796229268,5.3465,149.63,149.54,224.3497]
[1740796229440,12.5462,149.64,149.54,224.3497]
[1740796229841,5.3462,149.64,149.54,224.3497]
[1740796230456,5.3462,149.64,149.55,7.847]
[1740796230851,7.2,149.65,149.55,226.847]
[1740796231060,7.2,149.65,149.56,18.64964886]
[1740796231264,37.35614886,149.68,149.56,18.64964886]
[1740796231448,18.64964886,149.64,149.56,219.0]
[1740796231760,18.64964886,149.62,149.56,81.0]
[1740796231937,20.0,149.59,149.56,81.0]
[1740796232348,18.64964886,149.58,149.51,226.847]
[1740796232552,5.3486,149.57,149.51,219.0]
[1740796232749,5.3486,149.57,149.51,81.0]
[1740796232750,18.64964886,149.56,149.51,81.0]
[1740796232950,18.64964886,149.56,149.47,219.0]
[1740796233242,20.64964886,149.56,149.47,219.0]
[1740796233642,18.64964886,149.54,149.47,219.0]
[1740796233845,18.64964886,149.5,149.47,81.0]
[1740796234543,5.3511,149.5,149.47,81.0]
[1740796234744,27.2,149.51,149.47,81.0]
[1740796235066,5.3497,149.54,149.49,82.5033]
[1740796235243,23.99934886,149.54,149.49,82.5033]
[1740796235444,18.64964886,149.53,149.49,82.5033]
[1740796235766,38.64964886,149.5,149.49,1.5033]
[1740796236260,20.0,149.47,149.46,0.03]
[1740796236466,27.2,149.47,149.46,0.03]
[1740796236875,32.5522,149.47,149.46,0.03]
[1740796238745,55.15864886,149.47,149.46,0.03]
[1740796239549,145.89504886,149.47,149.46,0.03]
[1740796240950,143.89504886,149.47,149.46,0.03]
[1740796242281,23.9568,149.47,149.46,0.03]
[1740796242465,5.3519,149.48,149.46,0.03]
[1740796243470,9.3072,149.52,149.46,219.03]
[1740796243770,8.0935,149.55,149.46,219.03]
[1740796243771,12.5501,149.53,149.46,219.03]
[1740796244154,7.2,149.53,149.46,224.3824]
[1740796245569,18.64964886,149.53,149.46,219.03]
[1740796245771,18.64964886,149.53,149.46,224.3824]
[1740796246754,7.2,149.54,149.46,224.3824]
[1740796247073,4.1441,149.62,149.51,20.0]
[1740796247366,13.4397,149.64,149.52,27.1422]
[1740796247569,5.3462,149.64,149.55,20.0]
[1740796247871,5.4088,149.65,149.55,239.0]
[1740796248056,0.063,149.65,149.55,239.0]
[1740796248376,0.063,149.65,149.55,246.2]
[1740796248772,0.063,149.65,149.56,4.0]
[1740796249069,0.063,149.65,149.6,20.0]
[1740796249290,5.3443,149.7,149.6,20.0]
[1740796249291,20.54094619,149.72,149.64,20.0]
[1740796249569,20.54094619,149.72,149.67,20.0]
[1740796249872,20.54094619,149.72,149.67,239.0]
[1740796251173,18.71264886,149.77,149.67,219.0]
[1740796251674,5.3418,149.76,149.67,219.0]
[1740796251858,18.64964886,149.75,149.67,219.0]
[1740796252670,18.64964886,149.73,149.67,219.0]
[1740796253069,18.64964886,149.75,149.67,219.0]
[1740796254278,20.0,149.73,149.67,219.0]
[1740796254655,18.64964886,149.72,149.67,219.0]
[1740796254875,5.3436,149.71,149.67,219.0]
[1740796255574,5.3436,149.71,149.67,81.0]
[1740796255759,18.64964886,149.7,149.67,81.0]
[1740796255959,18.64964886,149.7,149.62,226.9444]
[1740796256360,18.64964886,149.7,149.62,219.0]
[1740796256556,20.0,149.67,149.62,81.0]
[1740796256762,5.3454,149.66,149.62,81.0]
[1740796257178,18.64964886,149.65,149.62,81.0]
[1740796257770,18.64964886,149.65,149.57,81.0]
[1740796258665,20.0,149.63,149.57,81.0]
[1740796258852,18.64964886,149.63,149.57,81.0]
[1740796260868,5.3468,149.62,149.57,81.0]
[1740796261177,25.82964886,149.61,149.57,81.0]
[1740796262960,5.3475,149.6,149.57,81.0]
[1740796264078,5.3483,149.58,149.57,81.0]
[1740796264285,5.3483,149.58,149.5,224.351]
[1740796264767,18.64964886,149.57,149.5,219.0]
[1740796264977,5.3483,149.58,149.5,219.0]
[1740796265374,5.3483,149.58,149.5,224.3511]
[1740796265771,5.3483,149.58,149.5,219.0]
[1740796265972,18.64964886,149.57,149.5,219.0]
[1740796266167,5.349,149.56,149.5,219.0]
[1740796267092,5.349,149.56,149.5,219.03]
[1740796267584,28.07994886,149.6,149.5,224.3811]
[1740796268859,18.64964886,149.59,149.5,219.03]
[1740796269480,20.0,149.56,149.5,219.03]
[1740796270084,20.0,149.56,149.5,224.381]
[1740796270381,18.64964886,149.59,149.5,219.03]
[1740796270774,5.3483,149.58,149.5,219.03]
[1740796271183,20.0,149.55,149.5,219.03]
[1740796271477,20.0,149.55,149.5,81.03]
[1740796271881,18.64964886,149.54,149.5,81.03]
[1740796272181,18.64964886,149.54,149.5,0.03]
[1740796272681,5.35,149.53,149.5,0.03]
[1740796272861,18.64964886,149.52,149.5,0.03]
[1740796273270,5.35,149.53,149.5,0.03]
[1740796273685,18.64964886,149.52,149.5,0.03]
[1740796273986,20.0,149.47,149.46,0.03]
[1740796274169,45.82964886,149.47,149.46,0.03]
[1740796274883,51.18184886,149.47,149.46,0.03]
[1740796275667,18.64964886,149.46,149.41,0.03]
[1740796276184,4.0,149.5,149.41,219.03]
[1740796276185,5.3511,149.5,149.41,219.03]
[1740796276486,18.64964886,149.49,149.41,219.03]
[1740796276697,20.0,149.46,149.41,81.03]
[1740796277077,25.3526,149.46,149.41,81.03]
[1740796277397,24.00134886,149.49,149.41,86.3842]
[1740796277705,12.5293,149.55,149.44,20.0]
[1740796277868,12.5293,149.55,149.44,239.0]
[1740796278664,18.64964886,149.54,149.44,239.0]
[1740796278868,18.64964886,149.54,149.44,219.0]
[1740796279185,5.35,149.53,149.45,5.3529]
[1740796279364,5.3498,149.54,149.45,5.3529]
[1740796279763,18.64964886,149.53,149.45,219.0]
[1740796280388,37.37374886,149.54,149.45,219.0]
[1740796280577,20.0,149.5,149.45,219.0]
[1740796280782,20.0,149.5,149.45,81.0]
[1740796281092,5.3515,149.49,149.45,81.0]
[1740796281491,18.64964886,149.47,149.42,81.0]
[1740796281869,7.18,149.48,149.42,81.0]
[1740796282289,7.18,149.51,149.42,224.3539]
[1740796282482,5.3497,149.54,149.42,226.3539]
[1740796282688,18.64964886,149.53,149.42,237.7389]
[1740796282890,18.64964886,149.53,149.42,224.3539]
[1740796283096,5.3504,149.52,149.42,237.7389]
[1740796283687,5.3497,149.54,149.43,20.64964886]
[1740796283871,12.5294,149.55,149.44,10.3684]
[1740796284075,4.0032,149.56,149.47,20.0]
[1740796284274,5.349,149.56,149.47,239.0]
[1740796285290,18.64964886,149.55,149.47,224.3521]
[1740796286391,7.18,149.57,149.47,224.3521]
[1740796286605,12.5287,149.57,149.47,224.3521]
[1740796286772,5.3483,149.58,149.47,239.7327]
[1740796287084,23.99724886,149.6,149.48,22.05385986]
[1740796287391,23.99724886,149.6,149.52,20.0]
[1740796287595,3.9649,149.61,149.52,239.0]
[1740796287596,5.3472,149.61,149.52,239.0]
[1740796288003,12.5269,149.62,149.52,239.3704]
[1740796288176,5.3466,149.63,149.52,239.3704]
[1740796288495,5.4088,149.65,149.56,20.0]
[1740796288798,12.5888,149.65,149.56,239.0]
[1740796288978,18.64964886,149.64,149.56,239.0]
[1740796289178,18.64964886,149.64,149.56,219.0]
[1740796289695,18.64964886,149.64,149.57,8.1649]
[1740796289996,7.243,149.65,149.57,227.1649]
[1740796290501,0.063,149.65,149.58,7.3483]
[1740796290680,0.063,149.6,149.58,7.3483]
[1740796290874,0.063,149.6,149.58,226.3483]
[1740796291296,0.063,149.6,149.59,3.40319301]
[1740796291484,0.063,149.6,149.59,221.0]
[1740796291882,0.063,149.6,149.59,219.0]
[1740796292782,0.063,149.6,149.59,81.0]
[1740796293109,0.063,149.6,149.59,219.0]
[1740796297504,0.063,149.6,149.54,224.3496]
[1740796298489,5.4105,149.6,149.54,224.3496]
[1740796300017,0.063,149.6,149.54,226.3496]
[1740796300618,0.063,149.6,149.55,2.0]
[1740796300798,0.063,149.6,149.58,20.0]
[1740796300986,0.063,149.6,149.58,239.0]
[1740796301314,4.9715,149.66,149.58,239.0]
[1740796301893,23.99464886,149.67,149.59,5.3479]
[1740796302505,5.3447,149.68,149.59,224.3479]
[1740796302679,84.763,149.75,149.63,20.0]
[1740796302680,5.3433,149.72,149.63,20.0]
[1740796302883,4.0126,149.75,149.63,20.0]
[1740796302884,0.063,149.75,149.64,2.0]
[1740796303121,0.063,149.75,149.69,20.0]
[1740796303417,0.063,149.75,149.69,239.0]
[1740796303785,0.063,149.75,149.69,219.0]
[1740796303985,0.063,149.75,149.7,5.344]
[1740796304481,0.063,149.75,149.7,219.0]
[1740796304905,0.063,149.75,149.73,20.0]
[1740796305118,0.063,149.75,149.71,138.0]
[1740796305415,0.063,149.75,149.73,219.0]
[1740796306212,0.063,149.75,149.73,224.3429]
[1740796306920,0.063,149.75,149.74,5.4017654]
[1740796307126,0.063,149.77,149.76,20.0]
[1740796307403,1.488e-05,149.78,149.77,4.0]
[1740796307613,1.488e-05,149.78,149.77,224.4012715]
[1740796307918,1.488e-05,149.78,149.77,221.0]
[1740796308097,1.488e-05,149.78,149.77,219.0]
[1740796308986,1.488e-05,149.78,149.75,138.0]
[1740796310007,1.488e-05,149.78,149.77,20.0]
[1740796310320,1.488e-05,149.78,149.77,242.40175206]
[1740796310498,1.488e-05,149.8,149.79,4.0]
[1740796310684,1.488e-05,149.8,149.79,224.40123234]
[1740796310889,1.488e-05,149.8,149.79,241.64964886]
[1740796311089,0.063,149.86,149.84,20.0]
[1740796311306,0.063,149.86,149.84,238.99998512]
[1740796312204,0.063,149.86,149.84,244.33878512]
[1740796313220,0.063,149.86,149.84,238.99998512]
[1740796313523,0.063,149.86,149.84,218.99998512]
[1740796315110,0.063,149.86,149.8,137.99998512]
[1740796316115,18.71264886,149.86,149.8,137.99998512]
[1740796316301,18.64964886,149.84,149.8,137.99998512]
[1740796316498,0.063,149.86,149.81,20.0]
[1740796316823,0.063,149.86,149.81,157.99998512]
[1740796317230,0.063,149.86,149.78,137.99998512]
[1740796317404,0.063,149.86,149.76,81.0]
[1740796317405,5.4013,149.86,149.76,218.99998512]
[1740796317601,18.64964886,149.85,149.76,218.99998512]
[1740796318497,5.339,149.84,149.76,218.99998512]
[1740796318902,18.64964886,149.83,149.72,138.02998512]
[1740796320198,3.969,149.79,149.72,0.03]
[1740796320404,18.64964886,149.77,149.72,0.03]
[1740796320630,23.99114886,149.77,149.72,0.03]
[1740796321641,37.34494886,149.77,149.72,0.03]
[1740796322299,38.64964886,149.73,149.63,137.99998512]
[1740796322506,42.61864886,149.68,149.59,137.99998512]
[1740796322704,18.64964886,149.67,149.59,137.99998512]
[1740796322905,18.64964886,149.65,149.59,137.99998512]
[1740796323111,18.64964886,149.65,149.55,137.99998512]
[1740796323112,26.48214886,149.65,149.55,137.99998512]
[1740796323517,28.48214886,149.65,149.57,0.03]
[1740796323704,26.48214886,149.65,149.57,0.03]
[1740796323902,28.48214886,149.65,149.57,0.03]
[1740796324312,20.0,149.62,149.57,0.03]
[1740796324512,5.3475,149.6,149.57,0.03]
[1740796324705,18.64964886,149.58,149.57,0.03]
[1740796325109,7.96,149.59,149.57,0.03]
[1740796326103,15.7925,149.65,149.57,81.03]
[1740796326321,15.7925,149.65,149.57,219.02998512]
[1740796326703,18.64964886,149.64,149.57,224.37848512]
[1740796327210,18.64964886,149.64,149.57,219.02998512]
[1740796327610,7.98,149.66,149.57,219.02998512]
[1740796327611,5.345,149.67,149.57,219.02998512]
[1740796327922,18.64964886,149.62,149.57,219.02998512]
[1740796328103,18.64964886,149.62,149.57,81.03]
[1740796328614,23.99684886,149.62,149.57,81.03]
[1740796330327,18.64964886,149.62,149.57,81.03]
[1740796330706,23.99664886,149.62,149.57,81.03]
[1740796331102,5.3458,149.65,149.57,81.03]
[1740796331309,5.345,149.67,149.57,224.37848512]
[1740796331632,9.3138,149.68,149.6,20.0]
[1740796331804,18.64964886,149.67,149.6,238.99998512]
[1740796332205,8.4317,149.71,149.6,238.99998512]
[1740796332409,5.3433,149.72,149.6,238.99998512]
[1740796332610,13.3229,149.73,149.61,1.40290998]
[1740796332813,13.3229,149.73,149.65,20.0]
[1740796333019,7.98,149.73,149.65,238.99998512]
[1740796333343,18.64964886,149.72,149.65,238.99998512]
[1740796333836,18.64964886,149.72,149.65,81.0]
[1740796334924,18.64964886,149.7,149.65,81.0]
[1740796335116,18.64964886,149.7,149.62,81.0]
[1740796335316,18.64964886,149.66,149.62,81.0]
[1740796335521,18.64964886,149.64,149.59,81.0]
[1740796336629,18.64964886,149.62,149.59,81.0]
[1740796337419,18.64964886,149.62,149.57,0.03]
[1740796338321,18.64964886,149.62,149.59,0.03]
[1740796338510,5.3472,149.61,149.59,0.03]
[1740796338912,18.64964886,149.6,149.59,0.03]
[1740796339235,5.3472,149.61,149.59,0.03]
[1740796339533,18.64964886,149.6,149.59,0.03]
[1740796340313,18.64964886,149.6,149.57,0.03]
[1740796340520,18.64964886,149.58,149.57,0.03]
[1740796340722,18.64964886,149.58,149.48,218.99998512]
[1740796341210,20.64964886,149.58,149.48,81.0]
[1740796341424,20.14964886,149.58,149.48,81.0]
[1740796342028,18.14964886,149.58,149.48,81.0]
[1740796342414,5.3486,149.57,149.48,218.99998512]
[1740796343539,18.64964886,149.56,149.48,218.99998512]
[1740796345645,5.3493,149.55,149.48,218.99998512]
[1740796345841,18.64964886,149.54,149.48,218.99998512]
[1740796347739,23.99864886,149.56,149.48,224.35178512]
[1740796348128,5.3487,149.57,149.48,224.35178512]
[1740796348331,18.64964886,149.56,149.48,224.35178512]
[1740796348717,5.3484,149.58,149.48,224.35178512]
[1740796348718,23.99804886,149.58,149.48,237.73148512]
[1740796348918,5.3484,149.58,149.51,20.0]
[1740796349114,5.3484,149.58,149.51,238.99998512]
[1740796349318,23.99804886,149.58,149.51,238.99998512]
[1740796349518,13.268,149.59,149.52,5.3504]
[1740796349940,18.64964886,149.58,149.52,5.3504]
[1740796350425,18.64964886,149.58,149.51,244.35068512]
[1740796351232,7.86,149.6,149.51,257.72768512]
[1740796351433,18.64964886,149.59,149.51,257.72768512]
[1740796351626,23.99764886,149.59,149.51,257.72768512]
[1740796351829,23.99764886,149.59,149.51,238.99998512]
[1740796352050,37.36744886,149.59,149.51,218.99998512]
[1740796353927,23.99764886,149.59,149.51,224.35058512]
[1740796354136,23.99754886,149.59,149.51,224.35058512]
[1740796354523,13.2076,149.6,149.51,237.72758512]
[1740796354740,4.0571,149.62,149.54,20.0]
[1740796354922,18.64964886,149.61,149.54,238.99998512]